bitfinex-derivatives/quotes_BTCF0:USTF0_20251118
["timestamp","ask_amount","ask_price","bid_price","bid_amount"]
[1763449414453,0.028979,89571.0,89570.0,0.02321803]
[1763449415561,0.030979,89571.0,89570.0,0.04597803]
[1763449416662,0.030979,89571.0,89570.0,0.00219803]
[1763449417857,0.030979,89571.0,89568.0,0.01343]
[1763449418066,0.05937829,89569.0,89568.0,0.05721]
[1763449418762,0.028979,89569.0,89568.0,0.05721]
[1763449418970,0.002,89571.0,89570.0,0.04597803]
[1763449419162,0.27128,89574.0,89573.0,0.04378]
[1763449419352,0.02898832,89574.0,89573.0,0.04378]
[1763449420357,0.06858518,89574.0,89573.0,0.04378]
[1763449420560,0.03959686,89575.0,89574.0,0.04378]
[1763449420963,0.03959686,89579.0,89577.0,0.04378]
[1763449421158,0.03959686,89579.0,89570.0,0.00219803]
[1763449421159,0.03959686,89579.0,89578.0,0.04378]
[1763449421854,0.03959686,89579.0,89568.0,0.01343]
[1763449421855,0.0289465,89579.0,89568.0,0.01343]
[1763449422064,0.0289465,89578.0,89570.0,0.00219803]
[1763449422362,0.03959686,89580.0,89579.0,0.04378]
[1763449422658,0.00016742,89583.0,89580.0,0.04597803]
[1763449422659,0.03959686,89581.0,89580.0,0.04597803]
[1763449422866,0.00016742,89583.0,89582.0,0.04378]
[1763449423555,0.02913521,89583.0,89582.0,0.04378]
[1763449424560,0.03013521,89583.0,89582.0,0.04378]
[1763449425265,0.04079673,89583.0,89582.0,0.04378]
[1763449425454,0.03013521,89583.0,89582.0,0.04378]
[1763449428265,0.27116,89591.0,89590.0,0.05739]
[1763449428464,0.27116,89591.0,89590.0,0.05958803]
[1763449429167,0.24432096,89591.0,89590.0,0.05958803]
[1763449429364,0.03962931,89597.0,89596.0,0.04378]
[1763449429569,0.00016742,89599.0,89598.0,0.04378]
[1763449429762,0.00016742,89599.0,89590.0,0.01361]
[1763449429763,0.04433,89591.0,89590.0,0.05739]
[1763449429956,0.04433,89591.0,89590.0,0.05958803]
[1763449430556,0.04433,89589.0,89588.0,0.00016742]
[1763449430863,0.02266,89589.0,89588.0,0.04394742]
[1763449431864,0.04533,89589.0,89588.0,0.04394742]
[1763449432059,0.04533,89589.0,89588.0,0.02118742]
[1763449432260,0.04433,89589.0,89588.0,0.02118742]
[1763449432472,0.04633,89589.0,89588.0,0.02118742]
[1763449433161,0.04633,89589.0,89562.0,0.05739]
[1763449433162,0.04433,89563.0,89562.0,0.05739]
[1763449433362,0.04433,89563.0,89540.0,0.09390926]
[1763449433560,0.04433,89563.0,89550.0,0.01580803]
[1763449433971,0.29654916,89560.0,89550.0,0.01580803]
[1763449434270,0.00016742,89564.0,89550.0,0.01580803]
[1763449434764,0.04433,89551.0,89550.0,0.03682803]
[1763449434967,0.04433,89551.0,89550.0,0.00219803]
[1763449435570,0.04433,89547.0,89546.0,0.00016742]
[1763449435872,0.04832055,89547.0,89546.0,0.00016742]
[1763449436365,0.04433,89539.0,89538.0,8.26e-05]
[1763449436869,0.0454,89531.0,89530.0,0.01361]
[1763449437070,0.01854487,89531.0,89530.0,0.05908803]
[1763449437368,0.2712,89541.0,89530.0,0.01580803]
[1763449437567,0.21263595,89540.0,89530.0,0.01580803]
[1763449437763,0.02940193,89539.0,89530.0,0.01580803]
[1763449437963,0.02952233,89539.0,89530.0,0.01580803]
[1763449438365,0.001,89531.0,89530.0,0.05908803]
[1763449439269,0.03052233,89539.0,89538.0,0.04328]
[1763449439662,0.03052233,89539.0,89530.0,0.01580803]
[1763449439863,0.03052233,89539.0,89530.0,0.01361]
[1763449440373,0.02634741,89538.0,89530.0,0.01361]
[1763449440573,0.02634741,89537.0,89522.0,0.00016752]
[1763449440765,0.02634741,89536.0,89526.0,0.02203925]
[1763449440964,0.02634741,89536.0,89526.0,0.00027925]
[1763449440965,0.02634741,89535.0,89526.0,0.00027925]
[1763449441165,0.02634741,89535.0,89522.0,0.00016752]
[1763449441166,0.001,89531.0,89522.0,0.00016752]
[1763449441361,0.026447,89530.0,89522.0,0.00016752]
[1763449441567,0.29762741,89529.0,89522.0,0.00016752]
[1763449441877,0.29762741,89529.0,89486.0,0.00027937]
[1763449441878,0.09938906,89528.0,89496.0,0.03576]
[1763449442168,0.0396476,89520.0,89496.0,0.03576]
[1763449442373,0.0396476,89520.0,89500.0,0.02395803]
[1763449442374,0.21263595,89506.0,89500.0,0.02395803]
[1763449442571,0.27132,89505.0,89496.0,0.03576]
[1763449442770,0.27643338,89505.0,89496.0,0.03576]
[1763449443160,0.27643338,89505.0,89504.0,0.04328]
[1763449443472,0.0001204,89505.0,89504.0,0.04328]
[1763449444673,0.0011204,89505.0,89504.0,0.04328]
[1763449445073,0.06096986,89505.0,89504.0,0.04328]
[1763449446574,0.06096986,89505.0,89500.0,0.00219803]
[1763449446779,0.06096986,89505.0,89496.0,0.014]
[1763449447076,0.07230865,89505.0,89496.0,0.014]
[1763449447267,0.07230865,89505.0,89492.0,0.00016752]
[1763449447765,0.07230865,89505.0,89492.0,0.02192752]
[1763449448274,0.05996986,89505.0,89492.0,0.02192752]
[1763449448876,0.14834818,89505.0,89492.0,0.02192752]
[1763449449076,0.05996986,89505.0,89492.0,0.02192752]
[1763449449268,0.21263595,89502.0,89496.0,0.03576]
[1763449449777,0.00549275,89501.0,89496.0,0.03576]
[1763449450668,0.00549275,89501.0,89496.0,0.014]
[1763449450971,0.00549275,89501.0,89496.0,0.03576]
[1763449451869,0.06034883,89504.0,89496.0,0.03576]
[1763449452072,0.06034883,89504.0,89496.0,0.014]
[1763449452569,0.06034883,89504.0,89496.0,0.03576]
[1763449452976,0.06034883,89504.0,89503.0,0.04328]
[1763449453269,0.33166883,89504.0,89503.0,0.04328]
[1763449454974,0.06134883,89504.0,89503.0,0.04328]
[1763449457180,0.001,89504.0,89503.0,0.04328]
[1763449459480,4e-07,89505.0,89504.0,0.04518]
[1763449460583,0.0010004,89505.0,89504.0,0.04518]
[1763449461481,0.0010004,89505.0,89500.0,0.02479803]
[1763449461683,0.0010004,89505.0,89504.0,0.0226]
[1763449461983,0.0010004,89505.0,89504.0,0.04518]
[1763449462384,0.02723765,89505.0,89504.0,0.04518]
[1763449462774,0.0010004,89505.0,89504.0,0.04518]
[1763449462983,0.0396476,89527.0,89526.0,0.02258]
[1763449463280,0.04587097,89532.0,89531.0,0.04518]
[1763449463479,0.07214549,89532.0,89531.0,0.04518]
[1763449463673,0.27136,89537.0,89536.0,0.04518]
[1763449463879,0.01133773,89545.0,89540.0,0.03860803]
[1763449463880,0.04391,89541.0,89540.0,0.03860803]
[1763449464082,0.07017426,89541.0,89540.0,0.05899]
[1763449464282,0.02626426,89541.0,89540.0,0.06118803]
[1763449465386,0.00016752,89549.0,89548.0,0.04518]
[1763449465586,0.02642483,89549.0,89548.0,0.04518]
[1763449466382,0.07033483,89549.0,89540.0,0.01381]
[1763449466583,0.02625731,89548.0,89540.0,0.01600803]
[1763449466784,0.001,89541.0,89540.0,0.06118803]
[1763449467083,0.02725731,89541.0,89540.0,0.06118803]
[1763449467382,0.02625731,89541.0,89540.0,0.06118803]
[1763449467594,0.00116752,89549.0,89548.0,0.04279]
[1763449467881,0.00016752,89549.0,89548.0,0.04279]
[1763449469082,0.02136752,89549.0,89548.0,0.04279]
[1763449469282,0.04297752,89549.0,89548.0,0.04279]
[1763449469878,0.04397752,89549.0,89548.0,0.04279]
[1763449470187,0.02236752,89549.0,89548.0,0.04279]
[1763449470386,0.00116752,89549.0,89548.0,0.04279]
[1763449473789,0.04308913,89566.0,89565.0,0.04279]
[1763449474691,0.00027913,89566.0,89565.0,0.04279]
[1763449475285,2.903e-05,89566.0,89565.0,0.04279]
[1763449475993,0.00202903,89566.0,89565.0,0.04279]
[1763449476388,2.903e-05,89566.0,89565.0,0.02146]
[1763449476588,0.00102903,89566.0,89565.0,0.04279]
[1763449476789,0.04383903,89566.0,89565.0,0.02133]
[1763449477288,0.04383903,89566.0,89565.0,0.04279]
[1763449477487,0.04281,89561.0,89560.0,0.00219803]
[1763449477683,0.04281,89561.0,89560.0,0.02352803]
[1763449477888,0.04281,89561.0,89560.0,0.04498803]
[1763449478692,0.04281,89561.0,89560.0,0.00179803]
[1763449479492,0.04381,89561.0,89560.0,0.00179803]
[1763449479894,0.04281,89558.0,89557.0,0.00016752]
[1763449480396,0.04281,89558.0,89557.0,0.04295752]
[1763449481091,0.04976392,89558.0,89557.0,0.00016752]
[1763449481783,0.04976392,89558.0,89540.0,0.01381]
[1763449481988,0.21311871,89550.0,89540.0,0.01381]
[1763449482195,0.21311871,89550.0,89540.0,0.00219803]
[1763449483390,0.04281,89541.0,89540.0,0.04498803]
[1763449483597,0.04281,89541.0,89540.0,0.00219803]
[1763449483787,0.04281,89537.0,89536.0,0.00016752]
[1763449483990,0.04281,89537.0,89500.0,0.21263595]
[1763449484291,0.04329276,89530.0,89529.0,0.04279]
[1763449484597,0.00048276,89530.0,89529.0,0.04279]
[1763449485298,0.02168276,89530.0,89529.0,0.04279]
[1763449485596,0.00048276,89530.0,89529.0,0.04279]
[1763449485790,0.00148276,89530.0,89529.0,0.04279]
[1763449487393,0.25544595,89550.0,89549.0,0.02133]
[1763449487594,0.0694213,89550.0,89549.0,0.02133]
[1763449487787,0.04281,89542.0,89541.0,0.04295752]
[1763449488592,0.04381,89550.0,89549.0,0.02133]
[1763449488898,0.04281,89542.0,89541.0,0.04295752]
[1763449489094,0.04381,89542.0,89541.0,0.00016752]
[1763449489400,0.06996113,89542.0,89541.0,0.00016752]
[1763449489700,0.06896113,89542.0,89541.0,0.00016752]
[1763449490192,0.01360276,89540.0,89510.0,0.01393]
[1763449490400,0.22575595,89530.0,89520.0,0.00219803]
[1763449490598,0.02168276,89530.0,89529.0,0.04279]
[1763449490899,0.04329276,89530.0,89529.0,0.04279]
[1763449491694,0.04329276,89530.0,89521.0,0.04295752]
[1763449491695,0.04281,89522.0,89521.0,0.04295752]
[1763449491997,0.05693,89530.0,89529.0,0.04279]
[1763449492198,0.04429276,89530.0,89529.0,0.04279]
[1763449492599,0.06930485,89530.0,89529.0,0.04279]
[1763449494309,0.07030485,89530.0,89529.0,0.04279]
[1763449495618,0.0212,89522.0,89521.0,0.04295752]
[1763449496205,0.04281,89522.0,89521.0,0.04295752]
[1763449496811,0.0212,89522.0,89521.0,0.04295752]
[1763449497213,0.0222,89522.0,89521.0,0.04295752]
[1763449497809,0.04519,89522.0,89521.0,0.04295752]
[1763449498216,0.08706614,89522.0,89521.0,0.00016752]
[1763449498412,0.01375276,89520.0,89500.0,0.01393]
[1763449498614,0.04472,89501.0,89500.0,0.04487803]
[1763449498815,0.04472,89501.0,89500.0,0.02365803]
[1763449499016,0.04472,89501.0,89500.0,0.00219803]
[1763449499212,0.09708287,89501.0,89500.0,0.00219803]
[1763449499418,0.04488752,89509.0,89508.0,0.04268]
[1763449499620,0.07087353,89509.0,89508.0,0.04268]
[1763449499815,0.13022368,89509.0,89508.0,0.04268]
[1763449500215,0.02615353,89509.0,89508.0,0.04268]
[1763449500621,0.00016752,89509.0,89508.0,0.04268]
[1763449501118,0.04472,89501.0,89492.0,0.00011164]
[1763449501317,0.04472,89501.0,89500.0,0.04268]
[1763449501318,0.02173,89501.0,89500.0,0.04268]
[1763449501517,0.00116752,89509.0,89508.0,0.04268]
[1763449501722,0.04588752,89509.0,89492.0,0.00011164]
[1763449501917,0.04488752,89509.0,89500.0,0.00219803]
[1763449502115,0.04588752,89509.0,89508.0,0.04268]
[1763449502420,0.00116752,89509.0,89508.0,0.04268]
[1763449502724,0.04472,89530.0,89529.0,0.04268]
[1763449502918,0.08445697,89530.0,89510.0,0.01338]
[1763449503114,0.00048276,89530.0,89529.0,0.05606]
[1763449503319,0.02646689,89530.0,89529.0,0.05606]
[1763449503916,0.04520276,89530.0,89529.0,0.02146]
[1763449504118,0.04620276,89530.0,89529.0,0.02146]
[1763449504520,0.04520276,89530.0,89529.0,0.02146]
[1763449504720,0.04620276,89530.0,89529.0,0.02146]
[1763449505018,0.04620276,89530.0,89529.0,0.04268]
[1763449505224,0.02746748,89530.0,89529.0,0.04268]
[1763449505426,0.07218748,89530.0,89529.0,0.04268]
[1763449505617,0.02746748,89530.0,89529.0,0.04268]
[1763449505819,0.07218748,89530.0,89529.0,0.04268]
[1763449506019,0.04620276,89530.0,89529.0,0.04268]
[1763449506324,0.001,89530.0,89529.0,0.04993]
[1763449506625,0.00016752,89538.0,89537.0,0.04268]
[1763449507624,0.01327,89560.0,89540.0,0.00219803]
[1763449507825,0.00048276,89560.0,89559.0,0.04268]
[1763449508017,0.00048276,89560.0,89551.0,0.04268]
[1763449508219,0.02602445,89559.0,89551.0,0.04268]
[1763449508721,0.02602445,89559.0,89558.0,0.02146]
[1763449508722,0.04775445,89559.0,89558.0,0.02146]
[1763449508928,0.02602445,89559.0,89558.0,0.04268]
[1763449509322,0.00048276,89560.0,89559.0,0.04268]
[1763449509719,0.02651683,89560.0,89559.0,0.04268]
[1763449509927,0.00048276,89560.0,89559.0,0.04268]
[1763449510930,0.00148276,89560.0,89559.0,0.04268]
[1763449511322,0.001,89560.0,89559.0,0.04268]
[1763449511721,0.04620276,89560.0,89559.0,0.04268]
[1763449512127,0.00148276,89560.0,89559.0,0.04268]
[1763449513132,0.04620276,89560.0,89559.0,0.04268]
[1763449513833,0.04620276,89560.0,89559.0,0.02146]
[1763449514036,0.05116185,89560.0,89546.0,0.00016752]
[1763449514327,0.05116185,89560.0,89550.0,0.00219803]
[1763449514524,0.05116185,89560.0,89559.0,0.02146]
[1763449514733,0.05116185,89560.0,89546.0,0.00016752]
[1763449514925,0.05116185,89560.0,89550.0,0.00219803]
[1763449515118,0.05116185,89560.0,89559.0,0.02146]
[1763449515322,0.00148276,89560.0,89559.0,0.04268]
[1763449515532,0.00048276,89560.0,89559.0,0.04268]
[1763449516224,0.00148276,89560.0,89559.0,0.04268]
[1763449517923,0.04620276,89560.0,89559.0,0.04268]
[1763449518734,0.00148276,89560.0,89559.0,0.04268]
[1763449519738,0.001,89560.0,89559.0,0.04268]
[1763449520136,0.00016752,89564.0,89563.0,0.04507]
[1763449520622,2.655e-05,89566.0,89563.0,0.04507]
[1763449520823,0.0441,89585.0,89584.0,0.04507]
[1763449521024,0.01352276,89580.0,89560.0,0.00888803]
[1763449521229,0.0441,89579.0,89578.0,0.04507]
[1763449521429,0.0441,89579.0,89560.0,0.30379071]
[1763449521629,0.04458276,89570.0,89569.0,0.04507]
[1763449522028,0.00048276,89570.0,89569.0,0.04507]
[1763449522730,0.00016752,89578.0,89577.0,0.04507]
[1763449524631,0.02258752,89578.0,89577.0,0.04507]
[1763449524937,0.04426752,89578.0,89561.0,0.00016752]
[1763449525130,0.04426752,89578.0,89577.0,0.02208]
[1763449525331,0.00016752,89578.0,89577.0,0.04507]
[1763449525527,0.00216752,89578.0,89577.0,0.04507]
[1763449525927,0.00016752,89578.0,89577.0,0.04507]
[1763449526124,0.04426752,89578.0,89577.0,0.04507]
[1763449526334,0.00016752,89578.0,89577.0,0.04507]
[1763449526738,0.00116752,89578.0,89577.0,0.04507]
[1763449528238,0.00016752,89578.0,89577.0,0.04507]
[1763449529245,0.02212,89606.0,89605.0,0.04618]
[1763449529432,0.02212,89606.0,89595.0,0.01318]
[1763449529433,0.00048276,89610.0,89609.0,0.04618]
[1763449529743,0.00048276,89610.0,89588.0,0.1117555]
[1763449529744,0.06972914,89610.0,89580.0,0.29710071]
[1763449529940,0.04342,89601.0,89600.0,0.00219803]
[1763449530134,0.04342,89601.0,89600.0,0.02517803]
[1763449530446,0.04342,89601.0,89600.0,0.00219803]
[1763449531130,0.01354,89606.0,89600.0,0.00219803]
[1763449531131,0.0001674,89609.0,89608.0,0.04618]
[1763449531537,0.0435874,89609.0,89595.0,0.00606]
[1763449531739,0.04342,89601.0,89600.0,0.02517803]
[1763449532433,0.04442,89601.0,89600.0,0.02517803]
[1763449532633,0.02212,89593.0,89592.0,0.0231474]
[1763449532834,0.04342,89593.0,89592.0,0.0001674]
[1763449533940,0.04342,89593.0,89592.0,0.0231474]
[1763449534136,0.04342,89593.0,89592.0,0.0001674]
[1763449534339,0.00048276,89590.0,89540.0,0.42272571]
[1763449534538,0.02212,89561.0,89560.0,0.02517803]
[1763449534737,0.04342,89561.0,89560.0,0.04837803]
[1763449534932,0.04342,89561.0,89560.0,0.00219803]
[1763449535333,0.04342,89561.0,89560.0,0.02517803]
[1763449535539,0.04342,89561.0,89560.0,0.02617803]
[1763449536040,0.04342,89561.0,89560.0,0.02517803]
[1763449536236,0.04442,89561.0,89560.0,0.02517803]
[1763449536441,0.04442,89561.0,89560.0,0.00219803]
[1763449537045,0.04442,89561.0,89560.0,0.04837803]
[1763449537249,0.001,89561.0,89560.0,0.04837803]
[1763449537843,0.0001674,89569.0,89568.0,0.05428]
[1763449538047,0.1443483,89595.0,89570.0,0.00219803]
[1763449538240,0.00048276,89590.0,89589.0,0.04618]
[1763449539139,0.0001674,89598.0,89597.0,0.04618]
[1763449539942,0.12745206,89627.0,89626.0,0.04618]
[1763449540139,0.11395604,89627.0,89626.0,0.04618]
[1763449540342,0.08805266,89627.0,89626.0,0.04618]
[1763449540545,0.00048276,89640.0,89639.0,0.04458]
[1763449541042,0.00048276,89640.0,89630.0,0.29710071]
[1763449541043,0.04358727,89648.0,89640.0,0.00219803]
[1763449541238,0.04342,89641.0,89640.0,0.00219803]
[1763449541443,0.00016727,89648.0,89647.0,0.04458]
[1763449541644,0.02228727,89648.0,89647.0,0.04458]
[1763449541858,0.04358727,89648.0,89631.0,0.0001674]
[1763449542037,0.04342,89632.0,89631.0,0.0001674]
[1763449542756,0.04342,89632.0,89569.0,0.1117792]
[1763449542757,0.00048276,89630.0,89569.0,0.1117792]
[1763449542938,0.00048276,89630.0,89580.0,0.29929874]
[1763449542939,0.04342,89601.0,89580.0,0.29929874]
[1763449543139,0.00048276,89590.0,89589.0,0.04458]
[1763449543350,0.01354,89600.0,89580.0,0.29929874]
[1763449543351,0.01354,89600.0,89590.0,0.00219803]
[1763449543550,0.01402276,89600.0,89590.0,0.00219803]
[1763449544950,0.00048276,89600.0,89599.0,0.04458]
[1763449545552,0.04390276,89600.0,89586.0,0.0001674]
[1763449545748,0.04342,89587.0,89586.0,0.0001674]
[1763449546341,0.06929145,89587.0,89550.0,0.29710071]
[1763449546546,0.04342,89571.0,89570.0,0.00219803]
[1763449546742,0.01402276,89580.0,89535.0,0.18904]
[1763449546743,0.04342,89555.0,89535.0,0.18904]
[1763449547247,0.04342,89555.0,89550.0,0.00219803]
[1763449548444,0.0001675,89563.0,89554.0,0.02241861]
[1763449548745,0.0001675,89563.0,89559.0,0.04458]
[1763449548746,0.00048276,89560.0,89559.0,0.04458]
[1763449549756,0.02260276,89560.0,89554.0,0.00012861]
[1763449550354,0.00048276,89560.0,89559.0,0.02229]
[1763449550847,0.00048276,89560.0,89554.0,0.00012861]
[1763449550848,0.02260276,89560.0,89554.0,0.00012861]
[1763449551345,0.04342,89555.0,89546.0,0.0001675]
[1763449551546,0.04342,89547.0,89505.0,0.00283]
[1763449551758,0.04342,89531.0,89530.0,0.00219803]
[1763449552048,0.04342,89527.0,89526.0,1e-08]
[1763449552258,0.04342,89527.0,89480.0,0.29710071]
[1763449552554,0.01402276,89520.0,89500.0,0.29710071]
[1763449552754,0.0001675,89515.0,89510.0,0.00219803]
[1763449552939,0.0001675,89515.0,89514.0,0.02242]
[1763449553649,0.0001675,89515.0,89514.0,0.04484]
[1763449554250,0.0222875,89515.0,89510.0,0.00219803]
[1763449554751,0.0001675,89515.0,89514.0,0.04484]
[1763449556263,0.0001675,89515.0,89510.0,0.00219803]
[1763449556264,0.04342,89511.0,89510.0,0.00219803]
[1763449556550,0.0001675,89515.0,89510.0,0.02461803]
[1763449557049,0.0001675,89515.0,89514.0,0.02242]
[1763449557246,0.0001675,89515.0,89514.0,0.04393]
[1763449557774,9.097e-05,89526.0,89525.0,0.04393]
[1763449560052,0.00048276,89530.0,89525.0,0.04393]
[1763449560053,0.0001675,89534.0,89525.0,0.04393]
[1763449560352,0.0001675,89534.0,89533.0,0.02225]
[1763449560652,0.0001675,89534.0,89533.0,0.04376]
[1763449560858,0.21274572,89570.0,89533.0,0.04376]
[1763449561057,0.04386,89551.0,89550.0,0.00219803]
[1763449561255,0.02137,89551.0,89550.0,0.02444803]
[1763449561459,0.31528142,89580.0,89558.0,0.04376]
[1763449561460,0.00199541,89564.0,89558.0,0.04376]
[1763449561652,0.22614572,89580.0,89550.0,0.00219803]
[1763449561653,0.02185276,89560.0,89559.0,0.04376]
[1763449562051,0.02185276,89560.0,89551.0,0.0001675]
[1763449562052,0.04386,89552.0,89551.0,0.0001675]
[1763449562651,0.0134,89558.0,89551.0,0.0001675]
[1763449562652,0.0134,89558.0,89551.0,0.0439275]
[1763449562856,0.0134,89558.0,89551.0,0.0001675]
[1763449562857,0.05726,89558.0,89551.0,0.0001675]
[1763449563654,0.00048276,89560.0,89559.0,0.04376]
[1763449563848,0.04434276,89560.0,89559.0,0.02225]
[1763449564054,0.04434276,89560.0,89551.0,0.0001675]
[1763449564556,0.00048276,89560.0,89559.0,0.04376]
[1763449565154,0.02137,89552.0,89551.0,0.0001675]
[1763449565859,0.0134,89558.0,89551.0,0.0439275]
[1763449566048,0.00048276,89560.0,89559.0,0.04376]
[1763449566651,0.00027913,89566.0,89565.0,0.04376]
[1763449567161,0.08842866,89608.0,89567.0,0.1117819]
[1763449567359,0.00048276,89590.0,89580.0,0.21494375]
[1763449568059,0.9159,89605.0,89594.0,0.04359]
[1763449568265,0.9159,89605.0,89590.0,0.00219803]
[1763449568266,0.04386,89591.0,89590.0,0.00219803]
[1763449568661,0.02137,89591.0,89590.0,0.02427803]
[1763449568859,0.0134,89600.0,89590.0,0.04578803]
[1763449569061,0.05774276,89600.0,89590.0,0.21494375]
[1763449569263,0.04386,89591.0,89590.0,0.00219803]
[1763449569458,0.9159,89605.0,89599.0,0.04359]
[1763449569663,0.00016739,89608.0,89590.0,0.00219803]
[1763449569664,0.00016739,89608.0,89607.0,0.04359]
[1763449570467,0.0393994,89654.0,89610.0,0.00219803]
[1763449570653,0.00048276,89630.0,89629.0,0.04359]
[1763449571171,0.001,89608.0,89607.0,0.04359]
[1763449571467,0.00048276,89630.0,89629.0,0.04359]
[1763449571657,0.00048276,89630.0,89621.0,0.0001674]
[1763449571658,0.04434276,89630.0,89621.0,0.0001674]
[1763449571853,0.04386,89622.0,89621.0,0.0001674]
[1763449572063,0.0134,89625.0,89621.0,0.0222474]
[1763449572267,0.04386,89622.0,89621.0,0.0001674]
[1763449574263,0.02137,89622.0,89621.0,0.0001674]
[1763449574563,0.02137,89625.0,89624.0,0.02208]
[1763449574764,0.21274572,89650.0,89624.0,0.02208]
[1763449574958,0.04386,89622.0,89621.0,0.0001674]
[1763449575266,0.21274572,89650.0,89627.0,0.04359]
[1763449575468,0.05726,89628.0,89621.0,0.0001674]
[1763449575656,0.04386,89622.0,89621.0,0.0001674]
[1763449577765,0.00048276,89620.0,89590.0,0.21274572]
[1763449577964,0.21322848,89620.0,89590.0,0.00219803]
[1763449578567,0.02137,89591.0,89590.0,0.00219803]
[1763449578863,0.04386,89591.0,89590.0,0.00219803]
[1763449579260,0.00016707,89599.0,89598.0,0.04342]
[1763449579761,0.07336829,89656.0,89600.0,0.00515803]
[1763449580074,0.02357276,89620.0,89619.0,0.02134]
[1763449581279,0.02357276,89620.0,89611.0,0.0001674]
[1763449584873,0.1999,89655.0,89611.0,0.0001674]
[1763449584874,0.08967741,89655.0,89619.0,0.04342]
[1763449585067,0.00048276,89630.0,89629.0,0.04342]
[1763449585477,0.04504276,89630.0,89611.0,0.0001674]
[1763449585668,0.04504276,89630.0,89620.0,0.21494375]
[1763449586477,0.04504276,89630.0,89620.0,0.00219803]
[1763449586674,0.04504276,89630.0,89620.0,0.21494375]
[1763449589275,0.00048276,89630.0,89629.0,0.04416]
[1763449589675,0.01355,89648.0,89634.0,0.04416]
[1763449589979,0.00048276,89640.0,89639.0,0.04416]
[1763449590674,0.02202276,89640.0,89639.0,0.04416]
[1763449590880,0.04438,89633.0,89632.0,0.0001674]
[1763449591273,0.02154,89633.0,89632.0,0.0443274]
[1763449591474,0.04438,89633.0,89632.0,0.0001674]
[1763449592382,0.01355,89635.0,89634.0,0.04416]
[1763449592781,0.01355,89648.0,89634.0,0.04416]
[1763449592983,0.00048276,89640.0,89639.0,0.04416]
[1763449593872,0.9111,89664.0,89640.0,0.00219803]
[1763449594083,0.02202276,89650.0,89649.0,0.04416]
[1763449594586,0.04486276,89650.0,89649.0,0.04416]
[1763449595282,0.00048276,89650.0,89649.0,0.04416]
[1763449595685,0.04486276,89650.0,89632.0,0.0001674]
[1763449595877,0.04438,89641.0,89640.0,0.00219803]
[1763449596079,0.01355,89648.0,89640.0,0.04635803]
[1763449596289,0.01355,89648.0,89647.0,0.02208]
[1763449596487,0.01355,89648.0,89647.0,0.04416]
[1763449596689,0.05793,89648.0,89632.0,0.0001674]
[1763449596989,0.04486276,89640.0,89639.0,0.02208]
[1763449597186,0.04486276,89640.0,89632.0,0.0001674]
[1763449597482,0.00048276,89640.0,89639.0,0.04416]
[1763449597687,0.02202276,89640.0,89639.0,0.04416]
[1763449598286,0.00048276,89640.0,89639.0,0.04416]
[1763449599392,0.03557276,89640.0,89639.0,0.04416]
[1763449600792,0.05841276,89640.0,89639.0,0.04416]
[1763449602694,0.00048276,89640.0,89639.0,0.04416]
[1763449602989,0.00048276,89640.0,89632.0,0.0001674]
[1763449602990,0.12949568,89640.0,89632.0,0.0001674]
[1763449603193,0.13169371,89640.0,89633.0,0.1116999]
[1763449603389,0.00219803,89640.0,89633.0,0.1116999]
[1763449603595,0.12949568,89634.0,89632.0,0.0001674]
[1763449603987,0.12949568,89633.0,89632.0,0.0001674]
[1763449604187,0.12849568,89633.0,89632.0,0.0001674]
[1763449605586,0.08005015,89633.0,89632.0,0.0001674]
[1763449605983,0.01399,89656.0,89632.0,0.0001674]
[1763449605984,0.01399,89656.0,89632.0,0.1117274]
[1763449606193,0.00219803,89650.0,89646.0,0.21274572]
[1763449606483,0.00219803,89650.0,89640.0,0.42549144]
[1763449606683,0.01399,89656.0,89643.0,0.1116869]
[1763449606884,0.01399,89656.0,89646.0,0.21274572]
[1763449607096,0.01355,89664.0,89646.0,0.21274572]
[1763449607299,0.00219803,89660.0,89654.0,0.21274572]
[1763449608391,0.00219803,89660.0,89648.0,0.0001673]
[1763449608595,0.00219803,89660.0,89650.0,0.21274572]
[1763449608985,0.01355,89652.0,89648.0,0.1118484]
[1763449610192,0.01399,89670.0,89648.0,0.0001673]
[1763449610399,0.01618803,89670.0,89660.0,0.21274572]
[1763449610794,0.01618803,89670.0,89663.0,0.1116623]
[1763449611002,0.0393994,89704.0,89674.0,0.1116481]
[1763449611210,0.01355,89712.0,89677.0,0.1116451]
[1763449611211,0.00219803,89690.0,89677.0,0.1116451]
[1763449611596,0.00219803,89690.0,89681.0,0.11164]
[1763449611796,0.00219803,89690.0,89676.0,0.21274572]
[1763449612189,0.00219803,89690.0,89679.0,0.1116419]
[1763449612393,0.00219803,89690.0,89676.0,0.21274572]
[1763449612997,0.01355,89688.0,89676.0,0.21274572]
[1763449613698,0.01355,89676.0,89675.0,0.2708]
[1763449614290,0.05793,89676.0,89675.0,0.2708]
[1763449614897,0.01355,89676.0,89675.0,0.2708]
[1763449615297,0.00219803,89680.0,89675.0,0.2708]
[1763449615802,0.01355,89676.0,89675.0,0.2708]
[1763449615999,0.00219803,89680.0,89675.0,0.2708]
[1763449616499,0.01355,89676.0,89675.0,0.2708]
[1763449616797,0.00219803,89680.0,89675.0,0.2708]
[1763449617004,0.01365,89676.0,89675.0,0.2708]
[1763449617199,0.00219803,89680.0,89675.0,0.2708]
[1763449617399,0.05937829,89723.0,89675.0,0.2708]
[1763449617400,0.03967803,89726.0,89683.0,0.1116371]
[1763449617601,0.00027863,89726.0,89703.0,0.1116121]
[1763449617811,0.00027863,89726.0,89707.0,0.1116068]
[1763449617996,0.00027863,89726.0,89714.0,0.29596729]
[1763449618804,0.01392863,89726.0,89714.0,0.29596729]
[1763449619498,0.00219803,89720.0,89714.0,0.29596729]
[1763449619703,0.00219803,89720.0,89715.0,0.17704]
[1763449620304,0.01392863,89726.0,89715.0,0.17704]
[1763449620702,0.00219803,89720.0,89715.0,0.17704]
[1763449620897,0.01392863,89726.0,89715.0,0.17704]
[1763449621406,0.00219803,89720.0,89715.0,0.17704]
[1763449622111,0.01392863,89726.0,89715.0,0.17704]
[1763449622298,0.00219803,89720.0,89715.0,0.17704]
[1763449623399,0.04348,89711.0,89710.0,0.29596729]
[1763449623595,0.04348,89711.0,89674.0,0.12235951]
[1763449623596,0.04567803,89710.0,89701.0,0.29596729]
[1763449623805,0.04567803,89710.0,89702.0,0.27068]
[1763449624302,0.01392863,89726.0,89702.0,0.27068]
[1763449624601,0.01392863,89726.0,89716.0,0.29596729]